[Event "Titled Tuesday Blitz May 03 Early 2022"]
[White "Lucas, Arthur"]
[Black "De Souza, Cristiano Gomes"]
[WhiteFideId "26093073"]
[BlackFideId "2151758"]
[WhiteElo "2129"]
[BlackElo "2068"]
[Result "1-0"]
[Round "09"]
[TimeControl "180+1"]
[Date "2022.05.03"]
[WhiteClock "0:00:54"]
[BlackClock "0:01:30"]

1. Nf3 {[%clk 0:03:00]}  Nf6 {[%clk 0:02:57]} 2. b3 {[%clk 0:03:01]}  g6 {[%clk 0:02:58]} 3. Bb2 {[%clk 0:03:01]}  Bg7 {[%clk 0:02:58]} 4. g3 {[%clk 0:03:00]}  O-O {[%clk 0:02:58]} 5. Bg2 {[%clk 0:03:01]}  d5 {[%clk 0:02:59]} 6. O-O {[%clk 0:03:00]}  c5 {[%clk 0:02:59]} 7. d3 {[%clk 0:03:01]}  Nc6 {[%clk 0:02:59]} 8. Nbd2 {[%clk 0:03:01]}  d4 {[%clk 0:02:59]} 9. e4 {[%clk 0:02:58]}  e5 {[%clk 0:02:55]} 10. Nc4 {[%clk 0:02:55]}  Ne8 {[%clk 0:02:55]} 11. a4 {[%clk 0:02:55]}  Nd6 {[%clk 0:02:54]} 12. Nfd2 {[%clk 0:02:50]}  Be6 {[%clk 0:02:53]} 13. Nxd6 {[%clk 0:02:50]}  Qxd6 {[%clk 0:02:53]} 14. f4 {[%clk 0:02:50]}  f5 {[%clk 0:02:47]} 15. Nc4 {[%clk 0:02:45]}  Bxc4 {[%clk 0:02:46]} 16. bxc4 {[%clk 0:02:45]}  fxe4 {[%clk 0:02:45]} 17. fxe5 {[%clk 0:02:42]}  Nxe5 {[%clk 0:02:43]} 18. Bxe4 {[%clk 0:02:40]}  Rxf1+ {[%clk 0:02:38]} 19. Qxf1 {[%clk 0:02:41]}  Rf8 {[%clk 0:02:33]} 20. Qg2 {[%clk 0:02:39]}  b6 {[%clk 0:02:32]} 21. Rf1 {[%clk 0:02:37]}  Rxf1+ {[%clk 0:02:30]} 22. Qxf1 {[%clk 0:02:38]}  Qf6 {[%clk 0:02:28]} 23. Qe2 {[%clk 0:02:24]}  Bh6 {[%clk 0:02:25]} 24. Kg2 {[%clk 0:02:21]}  Be3 {[%clk 0:02:22]} 25. Ba3 {[%clk 0:02:15]}  Kg7 {[%clk 0:02:22]} 26. a5 {[%clk 0:02:14]}  h5 {[%clk 0:02:19]} 27. axb6 {[%clk 0:02:05]}  axb6 {[%clk 0:02:19]} 28. Bb2 {[%clk 0:02:01]}  Kh6 {[%clk 0:02:18]} 29. h3 {[%clk 0:01:59]}  g5 {[%clk 0:02:12]} 30. c3 {[%clk 0:01:54]}  g4 {[%clk 0:02:08]} 31. h4 {[%clk 0:01:48]}  Ng6 {[%clk 0:02:02]} 32. cxd4 {[%clk 0:01:44]}  Bxd4 {[%clk 0:02:02]} 33. Bc1+ {[%clk 0:01:42]}  Kg7 {[%clk 0:02:01]} 34. Bg5 {[%clk 0:01:39]}  Qe5 {[%clk 0:01:59]} 35. Qa2 {[%clk 0:01:36]}  Qc7 {[%clk 0:01:51]} 36. Qa8 {[%clk 0:01:34]}  Bf6 {[%clk 0:01:47]} 37. Bxf6+ {[%clk 0:01:03]}  Kxf6 {[%clk 0:01:44]} 38. Qg8 {[%clk 0:00:59]}  Qf7 {[%clk 0:01:33]} 39. Qd8+ {[%clk 0:00:56]}  Qe7 {[%clk 0:01:30]} 40. Qxb6+ {[%clk 0:00:54]} 1-0


[Site "https://www.chess.com"]

[Event "Titled Tuesday Blitz May 03 Early 2022"]
[White "Melian, Juan Sebastian"]
[Black "Priyanka, K"]
[WhiteFideId "3706575"]
[BlackFideId "5082986"]
[WhiteElo "1842"]
[BlackElo "1905"]
[Result "1-0"]
[Round "09"]
[TimeControl "180+1"]
[Date "2022.05.03"]
[WhiteClock "0:00:06"]
[BlackClock "0:00:11"]

1. d4 {[%clk 0:03:00]}  Nf6 {[%clk 0:02:59]} 2. Nf3 {[%clk 0:03:01]}  g6 {[%clk 0:03:00]} 3. e3 {[%clk 0:03:01]}  Bg7 {[%clk 0:03:00]} 4. Be2 {[%clk 0:03:01]}  O-O {[%clk 0:02:59]} 5. O-O {[%clk 0:03:02]}  d6 {[%clk 0:02:57]} 6. b3 {[%clk 0:03:02]}  Nbd7 {[%clk 0:02:53]} 7. Bb2 {[%clk 0:03:03]}  c5 {[%clk 0:02:51]} 8. dxc5 {[%clk 0:03:00]}  Nxc5 {[%clk 0:02:49]} 9. c4 {[%clk 0:02:57]}  Bf5 {[%clk 0:02:49]} 10. Nd4 {[%clk 0:02:49]}  Bd7 {[%clk 0:02:46]} 11. Bf3 {[%clk 0:02:29]}  Nfe4 {[%clk 0:02:40]} 12. Qc2 {[%clk 0:02:24]}  f5 {[%clk 0:02:26]} 13. Nd2 {[%clk 0:02:21]}  Nxd2 {[%clk 0:02:25]} 14. Qxd2 {[%clk 0:02:22]}  e5 {[%clk 0:02:25]} 15. Bd5+ {[%clk 0:02:06]}  Kh8 {[%clk 0:02:24]} 16. Nb5 {[%clk 0:02:06]}  Bxb5 {[%clk 0:02:15]} 17. cxb5 {[%clk 0:02:07]}  Qe7 {[%clk 0:02:09]} 18. Rac1 {[%clk 0:02:04]}  Rac8 {[%clk 0:02:08]} 19. a4 {[%clk 0:02:04]}  b6 {[%clk 0:01:59]} 20. Rfd1 {[%clk 0:02:02]}  e4 {[%clk 0:01:50]} 21. Bc4 {[%clk 0:01:48]}  Rfd8 {[%clk 0:01:48]} 22. Bd4 {[%clk 0:01:09]}  Bxd4 {[%clk 0:01:24]} 23. exd4 {[%clk 0:01:10]}  Nd7 {[%clk 0:01:19]} 24. Bd5 {[%clk 0:00:57]}  Nf6 {[%clk 0:01:15]} 25. Bc6 {[%clk 0:00:56]}  d5 {[%clk 0:01:14]} 26. b4 {[%clk 0:00:53]}  Kg7 {[%clk 0:01:04]} 27. a5 {[%clk 0:00:53]}  Ng4 {[%clk 0:00:55]} 28. Re1 {[%clk 0:00:48]}  g5 {[%clk 0:00:52]} 29. f3 {[%clk 0:00:37]}  Nf6 {[%clk 0:00:52]} 30. Qxg5+ {[%clk 0:00:36]}  Kh8 {[%clk 0:00:52]} 31. Qxf5 {[%clk 0:00:37]}  Rf8 {[%clk 0:00:43]} 32. fxe4 {[%clk 0:00:29]}  Nxe4 {[%clk 0:00:41]} 33. Qxd5 {[%clk 0:00:24]}  Qf6 {[%clk 0:00:32]} 34. Qxe4 {[%clk 0:00:07]}  Qf2+ {[%clk 0:00:32]} 35. Kh1 {[%clk 0:00:07]}  Rcd8 {[%clk 0:00:29]} 36. Qe5+ {[%clk 0:00:07]}  Qf6 {[%clk 0:00:22]} 37. h3 {[%clk 0:00:08]}  Rxd4 {[%clk 0:00:20]} 38. Qxf6+ {[%clk 0:00:07]}  Rxf6 {[%clk 0:00:21]} 39. axb6 {[%clk 0:00:07]}  axb6 {[%clk 0:00:21]} 40. Re7 {[%clk 0:00:07]}  Rxb4 {[%clk 0:00:20]} 41. Rd1 {[%clk 0:00:07]}  Rf8 {[%clk 0:00:19]} 42. Rdd7 {[%clk 0:00:07]}  Rh4 {[%clk 0:00:19]} 43. Kh2 {[%clk 0:00:06]}  Rh6 {[%clk 0:00:17]} 44. Be4 {[%clk 0:00:05]}  Rh5 {[%clk 0:00:14]} 45. Rxh7+ {[%clk 0:00:04]}  Rxh7 {[%clk 0:00:15]} 46. Rxh7+ {[%clk 0:00:05]}  Kg8 {[%clk 0:00:16]} 47. Rb7 {[%clk 0:00:05]}  Rf4 {[%clk 0:00:16]} 48. Bd5+ {[%clk 0:00:05]}  Kf8 {[%clk 0:00:16]} 49. Rxb6 {[%clk 0:00:05]}  Rf5 {[%clk 0:00:16]} 50. Bc6 {[%clk 0:00:05]}  Rf6 {[%clk 0:00:15]} 51. Rb7 {[%clk 0:00:05]}  Rf5 {[%clk 0:00:14]} 52. Rb8+ {[%clk 0:00:05]}  Ke7 {[%clk 0:00:14]} 53. Re8+ {[%clk 0:00:05]}  Kd6 {[%clk 0:00:14]} 54. Re2 {[%clk 0:00:05]}  Rf4 {[%clk 0:00:13]} 55. Bf3 {[%clk 0:00:06]}  Rf6 {[%clk 0:00:12]} 56. Rd2+ {[%clk 0:00:06]}  Kc7 {[%clk 0:00:12]} 57. h4 {[%clk 0:00:06]}  Rh6 {[%clk 0:00:11]} 58. Kg3 {[%clk 0:00:06]}  Rg6+ {[%clk 0:00:11]} 59. Bg4 {[%clk 0:00:06]}  Rg7 {[%clk 0:00:11]} 60. h5 {[%clk 0:00:07]}  Rh7 {[%clk 0:00:11]} 61. Bf5 {[%clk 0:00:05]}  Rg7+ {[%clk 0:00:11]} 62. Kf4 {[%clk 0:00:06]}  Rh7 {[%clk 0:00:11]} 63. Bxh7 {[%clk 0:00:06]} 1-0


[Site "https://www.chess.com"]

[Event "Titled Tuesday Blitz May 03 Early 2022"]
[White "Melikhov, Evgeny V."]
[Black "Stevens, Christian"]
[WhiteFideId "4122046"]
[BlackFideId "2604450"]
[WhiteElo "1931"]
[BlackElo "2508"]
[Result "1-0"]
[Round "09"]
[TimeControl "180+1"]
[Date "2022.05.03"]
[WhiteClock "0:00:01"]
[BlackClock "0:00:01"]

1. d4 {[%clk 0:03:00]}  Nf6 {[%clk 0:02:38]} 2. c4 {[%clk 0:03:00]}  e6 {[%clk 0:02:35]} 3. Nc3 {[%clk 0:03:00]}  d5 {[%clk 0:02:33]} 4. cxd5 {[%clk 0:02:59]}  exd5 {[%clk 0:02:32]} 5. Bg5 {[%clk 0:02:59]}  Be7 {[%clk 0:02:28]} 6. e3 {[%clk 0:02:57]}  c6 {[%clk 0:02:28]} 7. Bd3 {[%clk 0:02:56]}  Bg4 {[%clk 0:02:28]} 8. Qc2 {[%clk 0:02:55]}  Bh5 {[%clk 0:02:28]} 9. f4 {[%clk 0:02:54]}  Ng4 {[%clk 0:02:24]} 10. Bxe7 {[%clk 0:01:54]}  Qxe7 {[%clk 0:02:25]} 11. e4 {[%clk 0:01:47]}  dxe4 {[%clk 0:02:21]} 12. Be2 {[%clk 0:01:29]}  Ne3 {[%clk 0:02:17]} 13. Qb3 {[%clk 0:01:19]}  Nxg2+ {[%clk 0:02:14]} 14. Kf2 {[%clk 0:01:19]}  Nxf4 {[%clk 0:02:13]} 15. Bxh5 {[%clk 0:01:18]}  e3+ {[%clk 0:02:11]} 16. Kf3 {[%clk 0:01:02]}  Nxh5 {[%clk 0:02:07]} 17. Qa3 {[%clk 0:00:56]}  Qh4 {[%clk 0:01:46]} 18. Kxe3 {[%clk 0:00:53]}  Qg5+ {[%clk 0:01:07]} 19. Kd3 {[%clk 0:00:48]}  Nf4+ {[%clk 0:00:30]} 20. Kc2 {[%clk 0:00:48]}  Qg6+ {[%clk 0:00:29]} 21. Kb3 {[%clk 0:00:41]}  Qe6+ {[%clk 0:00:28]} 22. Kc2 {[%clk 0:00:40]}  Qf5+ {[%clk 0:00:25]} 23. Kb3 {[%clk 0:00:40]}  Qe6+ {[%clk 0:00:18]} 24. Kc2 {[%clk 0:00:40]}  Nd7 {[%clk 0:00:19]} 25. Nf3 {[%clk 0:00:35]}  Qf5+ {[%clk 0:00:15]} 26. Kb3 {[%clk 0:00:35]}  O-O-O {[%clk 0:00:13]} 27. Qxa7 {[%clk 0:00:31]}  Nd5 {[%clk 0:00:08]} 28. Rhf1 {[%clk 0:00:26]}  Qe6 {[%clk 0:00:06]} 29. Ng5 {[%clk 0:00:24]}  Qd6 {[%clk 0:00:05]} 30. Nxf7 {[%clk 0:00:21]}  Qb4+ {[%clk 0:00:04]} 31. Kc2 {[%clk 0:00:22]}  Ne3+ {[%clk 0:00:04]} 32. Kd3 {[%clk 0:00:22]}  Nxf1 {[%clk 0:00:04]} 33. Nxh8 {[%clk 0:00:18]}  Nc5+ {[%clk 0:00:03]} 34. Ke2 {[%clk 0:00:16]}  Qxb2+ {[%clk 0:00:01]} 35. Kxf1 {[%clk 0:00:16]}  Qxa1+ {[%clk 0:00:01]} 36. Kf2 {[%clk 0:00:16]}  Qxc3 {[%clk 0:00:02]} 37. Qb6 {[%clk 0:00:03]}  Qxd4+ {[%clk 0:00:01]} 38. Kg3 {[%clk 0:00:03]}  Nd3 {[%clk 0:00:01]} 39. Qb3 {[%clk 0:00:01]} 1-0


[Site "https://www.chess.com"]

[Event "Titled Tuesday Blitz May 03 Early 2022"]
[White "Mohammadian, Mohammad"]
[Black "Peterson, Eric"]
[WhiteFideId "12566055"]
[BlackFideId "14908395"]
[WhiteElo "1544"]
[BlackElo "2195"]
[Result "0-1"]
[Round "09"]
[TimeControl "180+1"]
[Date "2022.05.03"]
[WhiteClock "0:01:23"]
[BlackClock "0:01:06"]

1. e4 {[%clk 0:03:00]}  e6 {[%clk 0:03:00]} 2. d4 {[%clk 0:02:59]}  d5 {[%clk 0:03:00]} 3. Nd2 {[%clk 0:02:58]}  c5 {[%clk 0:03:00]} 4. exd5 {[%clk 0:02:55]}  exd5 {[%clk 0:03:01]} 5. dxc5 {[%clk 0:02:55]}  Bxc5 {[%clk 0:02:58]} 6. c3 {[%clk 0:02:54]}  Nf6 {[%clk 0:02:57]} 7. Ngf3 {[%clk 0:02:54]}  O-O {[%clk 0:02:55]} 8. Bd3 {[%clk 0:02:54]}  Nc6 {[%clk 0:02:43]} 9. O-O {[%clk 0:02:52]}  Bg4 {[%clk 0:02:42]} 10. Re1 {[%clk 0:02:51]}  Qd6 {[%clk 0:02:39]} 11. Qc2 {[%clk 0:02:50]}  Rfe8 {[%clk 0:02:35]} 12. Rxe8+ {[%clk 0:02:44]}  Rxe8 {[%clk 0:02:34]} 13. Qd1 {[%clk 0:02:35]}  Ne4 {[%clk 0:02:13]} 14. Qc2 {[%clk 0:02:12]}  Bxf2+ {[%clk 0:01:41]} 15. Kf1 {[%clk 0:02:02]}  Bb6 {[%clk 0:01:32]} 16. Bxe4 {[%clk 0:02:00]}  dxe4 {[%clk 0:01:32]} 17. Nxe4 {[%clk 0:01:49]}  Qd5 {[%clk 0:01:18]} 18. Neg5 {[%clk 0:01:23]}  Qc4+ {[%clk 0:01:06]} 0-1


[Site "https://www.chess.com"]

[Event "Titled Tuesday Blitz May 03 Early 2022"]
[White "Nakamura, Hikaru"]
[Black "Abarca Gonzalez, Nicolas"]
[WhiteFideId "2016192"]
[BlackFideId "3409422"]
[WhiteElo "2850"]
[BlackElo "2504"]
[Result "1-0"]
[Round "09"]
[TimeControl "180+1"]
[Date "2022.05.03"]
[WhiteClock "0:00:14"]
[BlackClock "0:00:09"]

1. Nf3 {[%clk 0:03:00]}  Nf6 {[%clk 0:02:57]} 2. b3 {[%clk 0:03:00]}  g6 {[%clk 0:02:51]} 3. Bb2 {[%clk 0:03:00]}  Bg7 {[%clk 0:02:50]} 4. d4 {[%clk 0:03:00]}  d5 {[%clk 0:02:49]} 5. e3 {[%clk 0:03:01]}  O-O {[%clk 0:02:48]} 6. c4 {[%clk 0:03:00]}  c6 {[%clk 0:02:37]} 7. Bd3 {[%clk 0:02:59]}  Bf5 {[%clk 0:02:36]} 8. Bxf5 {[%clk 0:02:58]}  gxf5 {[%clk 0:02:36]} 9. h3 {[%clk 0:02:58]}  Nbd7 {[%clk 0:02:34]} 10. g4 {[%clk 0:02:58]}  fxg4 {[%clk 0:02:13]} 11. hxg4 {[%clk 0:02:58]}  Nxg4 {[%clk 0:02:13]} 12. Nbd2 {[%clk 0:02:49]}  f5 {[%clk 0:02:10]} 13. Ng5 {[%clk 0:02:48]}  Rf6 {[%clk 0:02:06]} 14. Qe2 {[%clk 0:02:34]}  Nf8 {[%clk 0:02:00]} 15. f3 {[%clk 0:02:33]}  Nh6 {[%clk 0:01:57]} 16. O-O-O {[%clk 0:02:33]}  a5 {[%clk 0:01:52]} 17. Rdg1 {[%clk 0:02:30]}  a4 {[%clk 0:01:48]} 18. b4 {[%clk 0:02:28]}  a3 {[%clk 0:01:42]} 19. Bc3 {[%clk 0:02:27]}  Rg6 {[%clk 0:01:37]} 20. f4 {[%clk 0:02:23]}  Ng4 {[%clk 0:01:32]} 21. Ndf3 {[%clk 0:02:14]}  b6 {[%clk 0:01:25]} 22. Nh4 {[%clk 0:02:13]}  Rxg5 {[%clk 0:01:19]} 23. fxg5 {[%clk 0:02:11]}  e6 {[%clk 0:01:19]} 24. Rxg4 {[%clk 0:01:58]}  fxg4 {[%clk 0:01:18]} 25. Qxg4 {[%clk 0:01:58]}  c5 {[%clk 0:01:14]} 26. g6 {[%clk 0:01:40]}  h6 {[%clk 0:01:13]} 27. Qf3 {[%clk 0:01:40]}  Ra7 {[%clk 0:01:08]} 28. cxd5 {[%clk 0:01:40]}  cxd4 {[%clk 0:00:56]} 29. Bxd4 {[%clk 0:01:35]}  Rc7+ {[%clk 0:00:52]} 30. Kb1 {[%clk 0:01:33]}  Qxd5 {[%clk 0:00:51]} 31. Qxd5 {[%clk 0:01:32]}  exd5 {[%clk 0:00:52]} 32. Bxb6 {[%clk 0:01:07]}  Rc4 {[%clk 0:00:51]} 33. Bc5 {[%clk 0:00:55]}  Ne6 {[%clk 0:00:49]} 34. Bd6 {[%clk 0:00:50]}  Bf8 {[%clk 0:00:48]} 35. Bxf8 {[%clk 0:00:49]}  Nxf8 {[%clk 0:00:48]} 36. Nf5 {[%clk 0:00:46]}  Rxb4+ {[%clk 0:00:47]} 37. Kc2 {[%clk 0:00:46]}  Nxg6 {[%clk 0:00:43]} 38. Nxh6+ {[%clk 0:00:46]}  Kf8 {[%clk 0:00:42]} 39. Kc3 {[%clk 0:00:40]}  Rb2 {[%clk 0:00:40]} 40. Ra1 {[%clk 0:00:40]}  Ke7 {[%clk 0:00:32]} 41. Nf5+ {[%clk 0:00:40]}  Kf6 {[%clk 0:00:30]} 42. Nd4 {[%clk 0:00:41]}  Ke5 {[%clk 0:00:29]} 43. Nc2 {[%clk 0:00:40]}  Rb8 {[%clk 0:00:20]} 44. Nxa3 {[%clk 0:00:39]}  Ke4 {[%clk 0:00:19]} 45. Nc2 {[%clk 0:00:30]}  Ne5 {[%clk 0:00:18]} 46. a4 {[%clk 0:00:30]}  Rc8+ {[%clk 0:00:16]} 47. Kb3 {[%clk 0:00:29]}  Rb8+ {[%clk 0:00:16]} 48. Kc3 {[%clk 0:00:29]}  Rc8+ {[%clk 0:00:16]} 49. Kd2 {[%clk 0:00:19]}  Nc4+ {[%clk 0:00:14]} 50. Ke2 {[%clk 0:00:20]}  Rh8 {[%clk 0:00:13]} 51. Rf1 {[%clk 0:00:17]}  Ra8 {[%clk 0:00:13]} 52. Ra1 {[%clk 0:00:09]}  Rh8 {[%clk 0:00:13]} 53. Rf1 {[%clk 0:00:09]}  Ra8 {[%clk 0:00:13]} 54. Rf4+ {[%clk 0:00:07]}  Ke5 {[%clk 0:00:13]} 55. Rh4 {[%clk 0:00:07]}  Rxa4 {[%clk 0:00:13]} 56. Rh5+ {[%clk 0:00:07]}  Kd6 {[%clk 0:00:12]} 57. Nd4 {[%clk 0:00:07]}  Ra2+ {[%clk 0:00:12]} 58. Kf3 {[%clk 0:00:07]}  Nd2+ {[%clk 0:00:11]} 59. Kf4 {[%clk 0:00:08]}  Nc4 {[%clk 0:00:08]} 60. Rh6+ {[%clk 0:00:08]}  Kd7 {[%clk 0:00:08]} 61. Rh5 {[%clk 0:00:08]}  Kd6 {[%clk 0:00:06]} 62. Nb5+ {[%clk 0:00:08]}  Kc5 {[%clk 0:00:06]} 63. Nc3 {[%clk 0:00:08]}  Rd2 {[%clk 0:00:06]} 64. Ne4+ {[%clk 0:00:08]}  Kc6 {[%clk 0:00:04]} 65. Nxd2 {[%clk 0:00:09]}  Nxd2 {[%clk 0:00:05]} 66. Rh8 {[%clk 0:00:05]}  Kd6 {[%clk 0:00:04]} 67. Rd8+ {[%clk 0:00:04]}  Kc5 {[%clk 0:00:04]} 68. Rc8+ {[%clk 0:00:02]}  Kd6 {[%clk 0:00:04]} 69. Rh8 {[%clk 0:00:03]}  Nc4 {[%clk 0:00:04]} 70. Rh1 {[%clk 0:00:04]}  Kc5 {[%clk 0:00:04]} 71. Rd1 {[%clk 0:00:05]}  Nd6 {[%clk 0:00:03]} 72. Rc1+ {[%clk 0:00:05]}  Nc4 {[%clk 0:00:04]} 73. Rc2 {[%clk 0:00:06]}  Kd6 {[%clk 0:00:03]} 74. e4 {[%clk 0:00:05]}  Nb6 {[%clk 0:00:03]} 75. e5+ {[%clk 0:00:05]}  Kd7 {[%clk 0:00:03]} 76. Kf5 {[%clk 0:00:06]}  d4 {[%clk 0:00:03]} 77. Rd2 {[%clk 0:00:06]}  Ke7 {[%clk 0:00:02]} 78. Rxd4 {[%clk 0:00:06]}  Nd7 {[%clk 0:00:02]} 79. Rxd7+ {[%clk 0:00:06]}  Kxd7 {[%clk 0:00:03]} 80. Kf6 {[%clk 0:00:07]}  Ke8 {[%clk 0:00:03]} 81. Ke6 {[%clk 0:00:08]}  Kf8 {[%clk 0:00:04]} 82. Kd7 {[%clk 0:00:08]}  Kf7 {[%clk 0:00:04]} 83. e6+ {[%clk 0:00:09]}  Kg7 {[%clk 0:00:05]} 84. e7 {[%clk 0:00:10]}  Kf7 {[%clk 0:00:05]} 85. e8=Q+ {[%clk 0:00:11]}  Kg7 {[%clk 0:00:06]} 86. Qe6 {[%clk 0:00:11]}  Kf8 {[%clk 0:00:06]} 87. Qf5+ {[%clk 0:00:11]}  Kg7 {[%clk 0:00:06]} 88. Ke7 {[%clk 0:00:12]}  Kg8 {[%clk 0:00:07]} 89. Qg4+ {[%clk 0:00:12]}  Kh8 {[%clk 0:00:08]} 90. Qg5 {[%clk 0:00:12]}  Kh7 {[%clk 0:00:08]} 91. Kf7 {[%clk 0:00:13]}  Kh8 {[%clk 0:00:09]} 92. Qh4# {[%clk 0:00:14]} 1-0


[Site "https://www.chess.com"]

[Event "Titled Tuesday Blitz May 03 Early 2022"]
[White "Namitbir Singh Walia"]
[Black "Gurevich, Dmitry"]
[WhiteFideId "35071068"]
[BlackFideId "2000407"]
[WhiteElo "1565"]
[BlackElo "2506"]
[Result "0-1"]
[Round "09"]
[TimeControl "180+1"]
[Date "2022.05.03"]
[WhiteClock "0:00:09"]
[BlackClock "0:00:46"]

1. d4 {[%clk 0:03:00]}  Nf6 {[%clk 0:02:59]} 2. c4 {[%clk 0:03:01]}  a6 {[%clk 0:02:59]} 3. Nf3 {[%clk 0:02:59]}  c5 {[%clk 0:02:58]} 4. Nc3 {[%clk 0:02:52]}  cxd4 {[%clk 0:02:58]} 5. Nxd4 {[%clk 0:02:53]}  d5 {[%clk 0:02:57]} 6. e3 {[%clk 0:02:42]}  g6 {[%clk 0:02:52]} 7. Nf3 {[%clk 0:02:21]}  e6 {[%clk 0:02:18]} 8. cxd5 {[%clk 0:02:13]}  exd5 {[%clk 0:02:18]} 9. b3 {[%clk 0:02:09]}  Bg7 {[%clk 0:02:17]} 10. Bb2 {[%clk 0:02:09]}  O-O {[%clk 0:02:09]} 11. Be2 {[%clk 0:02:08]}  Ne4 {[%clk 0:01:58]} 12. Rc1 {[%clk 0:01:51]}  Qa5 {[%clk 0:01:55]} 13. Nd4 {[%clk 0:01:35]}  Nc6 {[%clk 0:01:52]} 14. O-O {[%clk 0:01:09]}  Nxd4 {[%clk 0:01:51]} 15. exd4 {[%clk 0:01:08]}  Bf5 {[%clk 0:01:47]} 16. Qe1 {[%clk 0:00:38]}  Nxc3 {[%clk 0:01:40]} 17. Qxc3 {[%clk 0:00:39]}  Qxc3 {[%clk 0:01:33]} 18. Bxc3 {[%clk 0:00:40]}  Rac8 {[%clk 0:01:29]} 19. Bb2 {[%clk 0:00:39]}  Bh6 {[%clk 0:01:25]} 20. Rc5 {[%clk 0:00:32]}  Be6 {[%clk 0:01:13]} 21. Bf3 {[%clk 0:00:28]}  b6 {[%clk 0:01:10]} 22. Rxc8 {[%clk 0:00:18]}  Rxc8 {[%clk 0:01:09]} 23. Re1 {[%clk 0:00:12]}  Bd2 {[%clk 0:01:01]} 24. Re2 {[%clk 0:00:12]}  Rc2 {[%clk 0:00:58]} 25. Ba3 {[%clk 0:00:09]}  Rxa2 {[%clk 0:00:56]} 26. h3 {[%clk 0:00:05]}  Rxa3 {[%clk 0:00:55]} 27. Rxd2 {[%clk 0:00:05]}  Rxb3 {[%clk 0:00:52]} 28. Rc2 {[%clk 0:00:06]}  a5 {[%clk 0:00:49]} 29. Rc6 {[%clk 0:00:07]}  a4 {[%clk 0:00:48]} 30. Rd6 {[%clk 0:00:07]}  a3 {[%clk 0:00:47]} 31. Bxd5 {[%clk 0:00:08]}  Bxd5 {[%clk 0:00:46]} 32. Rxd5 {[%clk 0:00:09]} 0-1


[Site "https://www.chess.com"]

[Event "Titled Tuesday Blitz May 03 Early 2022"]
[White "Odegov, Artem"]
[Black "Prraneeth Vuppala"]
[WhiteFideId "34183644"]
[BlackFideId "46622373"]
[WhiteElo "2286"]
[BlackElo "1958"]
[Result "0-1"]
[Round "09"]
[TimeControl "180+1"]
[Date "2022.05.03"]
[WhiteClock "0:00:03"]
[BlackClock "0:00:10"]

1. d4 {[%clk 0:03:00]}  Nf6 {[%clk 0:02:58]} 2. c4 {[%clk 0:03:01]}  e6 {[%clk 0:02:58]} 3. Nf3 {[%clk 0:03:00]}  d5 {[%clk 0:02:59]} 4. Nc3 {[%clk 0:02:59]}  Bb4 {[%clk 0:02:52]} 5. Bg5 {[%clk 0:02:59]}  h6 {[%clk 0:02:50]} 6. Bxf6 {[%clk 0:02:59]}  Qxf6 {[%clk 0:02:51]} 7. Qa4+ {[%clk 0:02:59]}  Nc6 {[%clk 0:02:51]} 8. e3 {[%clk 0:02:59]}  O-O {[%clk 0:02:34]} 9. cxd5 {[%clk 0:02:59]}  exd5 {[%clk 0:02:33]} 10. Bb5 {[%clk 0:02:59]}  Bg4 {[%clk 0:02:10]} 11. Bxc6 {[%clk 0:02:37]}  Bxc3+ {[%clk 0:02:08]} 12. bxc3 {[%clk 0:02:37]}  Bxf3 {[%clk 0:02:09]} 13. gxf3 {[%clk 0:02:37]}  Qxf3 {[%clk 0:02:00]} 14. Bxd5 {[%clk 0:02:33]}  Qxd5 {[%clk 0:02:01]} 15. Rg1 {[%clk 0:02:33]}  c5 {[%clk 0:01:50]} 16. Qb3 {[%clk 0:02:30]}  Qe4 {[%clk 0:01:43]} 17. Qb1 {[%clk 0:02:27]}  Qf3 {[%clk 0:01:37]} 18. Qd1 {[%clk 0:02:25]}  Qf6 {[%clk 0:01:33]} 19. Qg4 {[%clk 0:02:21]}  Rac8 {[%clk 0:01:25]} 20. Rd1 {[%clk 0:01:48]}  Rfd8 {[%clk 0:01:18]} 21. Qe4 {[%clk 0:01:14]}  cxd4 {[%clk 0:01:13]} 22. cxd4 {[%clk 0:01:09]}  Re8 {[%clk 0:00:51]} 23. Qd3 {[%clk 0:00:43]}  Rc6 {[%clk 0:00:24]} 24. Rg3 {[%clk 0:00:42]}  a6 {[%clk 0:00:20]} 25. Ke2 {[%clk 0:00:42]}  b5 {[%clk 0:00:19]} 26. Rdg1 {[%clk 0:00:42]}  g6 {[%clk 0:00:19]} 27. Rf3 {[%clk 0:00:22]}  Qe7 {[%clk 0:00:19]} 28. d5 {[%clk 0:00:19]}  Rd6 {[%clk 0:00:18]} 29. Rfg3 {[%clk 0:00:19]}  Kh7 {[%clk 0:00:17]} 30. Rf3 {[%clk 0:00:10]}  Red8 {[%clk 0:00:16]} 31. Qc3 {[%clk 0:00:02]}  Rxd5 {[%clk 0:00:14]} 32. Rf4 {[%clk 0:00:03]}  b4 {[%clk 0:00:11]} 33. Qc4 {[%clk 0:00:02]}  Rd2+ {[%clk 0:00:11]} 34. Kf3 {[%clk 0:00:03]}  f5 {[%clk 0:00:10]} 35. Rd4 {[%clk 0:00:02]}  R8xd4 {[%clk 0:00:09]} 36. exd4 {[%clk 0:00:02]}  Qe4+ {[%clk 0:00:09]} 37. Kg3 {[%clk 0:00:03]}  Qg4# {[%clk 0:00:10]} 0-1


[Site "https://www.chess.com"]